Cogmind - Beta 15 @@@ ROGUE MODE // 2025.06.08 @ 12:35:47 Player: Zaros426 Result: Destroyed by TS-8HT(R) with Subdweller Machine Gun Performance ------------- Evolutions (0) 0 Regions Visited (3) 600 Robots Destroyed (44) 220 Value Destroyed (800) 800 Prototype IDs (2) 40 Alien Tech Used (0) 0 Bonus (-2) -2 TOTAL SCORE: 1658 Bonus ------- Friendly Fire -2 Cogmind --------- Core Integrity 0/250 Matter 194/300 Energy 174/200 System Corruption 0% Temperature Cool (0) Movement Walking (190) Ox1 Location -10/Subcaves Parts ------- > --- POWER (1) -------- Subdweller Power Source > --- PROPULSION (2) --- Aluminum Leg Aluminum Leg > --- UTILITY (2) ------ Large Storage Unit Seismic Detector > --- WEAPON (2) ------- Grenade Launcher Subdweller Shrapnel Launcher > --- INVENTORY (15) --- Huge Storage Unit High-capacity Battery (250) High-capacity Matter Pod (200) Structural Scanner Bomb Drone Bay Particle Gun Particle Gun Subdweller Laser Subdweller Machine Gun Datajack Multitool Ripper Peak State ------------ > --- POWER ------------ Ion Engine > --- PROPULSION ------- Aluminum Leg Aluminum Leg > --- UTILITY ---------- Large Storage Unit Seismic Detector > --- WEAPON ----------- Particle Gun Ripper > --- INVENTORY -------- Aluminum Leg Aluminum Leg Huge Storage Unit High-capacity Battery High-capacity Matter Pod Structural Scanner Bomb Drone Bay Particle Gun Particle Gun Particle Gun Grenade Launcher Grenade Launcher Datajack Mining Laser [Rating: 14] Favorites ----------- Power Ion Engine Engine Ion Engine Propulsion Aluminum Leg Treads Light Treads Leg Aluminum Leg Utility Large Storage Unit Device Seismic Detector Storage Large Storage Unit Weapon Particle Gun Energy Gun Particle Gun Ballistic Gun Assault Rifle Ballistic Cannon Light Cannon Launcher Grenade Launcher Special Weapon Mining Laser Slashing Weapon Ripper Build | -11 -10 -10 -10 ------- Run | Yrd Mat Min Sub Slots Evolved . | . . . . Power . | . . . . Propulsion . | . . . . Utility . | . . . . Weapon . | . . . . Parts Attached 32 | 8 15 1 8 Power 4 | 1 2 . 1 Engine 4 | 1 2 . 1 Core . | . . . . Reactor . | . . . . Propulsion 7 | 2 4 . 1 Treads 2 | 2 . . . Leg 5 | . 4 . 1 Wheel . | . . . . Hover . | . . . . Flight . | . . . . Utility 6 | 2 2 1 1 Device 3 | 1 1 1 . Storage 3 | 1 1 . 1 Processor . | . . . . Hackware . | . . . . Protection . | . . . . Artifact . | . . . . Weapon 15 | 3 7 . 5 Energy Gun 5 | 1 3 . 1 Energy Cannon . | . . . . Ballistic Gun 3 | 2 . . 1 Ballistic Cannon 1 | . 1 . . Launcher 4 | . 2 . 2 Special Weapon 1 | . 1 . . Impact Weapon . | . . . . Slashing Weapon 1 | . . . 1 Piercing Weapon . | . . . . Special Melee Weapon . | . . . . Unidentified Prototypes . | . . . . Parts Lost 7 | . 3 1 3 Power 1 | . 1 . . Propulsion 3 | . 1 . 2 Utility 2 | . 1 1 . Weapon 1 | . . . 1 Highest Loss Streak 2 | . 2 1 2 To Critical Strikes . | . . . . Average Backups 11 | 1 10 14 13 Power . | . . . . Propulsion 1 | . 1 2 1 Utility 3 | . 3 5 5 Weapon 5 | 1 5 5 5 Tool/Special . | . . . . Unused Backups 12 | . 2 . 10 Power . | . . . . Propulsion . | . . . . Utility 6 | . 1 . 5 Weapon 4 | . 1 . 3 Tool/Special 2 | . . . 2 Average Slot Usage (%) 93 | . 92 95 100 Engine 13 | . 13 14 14 Treads 7 | . 11 . . Leg 20 | . 15 28 28 Device 8 | . 6 9 14 Storage 14 | . 14 14 14 Energy Gun 16 | . 15 19 13 Ballistic Gun 3 | . 3 . 8 Ballistic Cannon 2 | . 3 . . Launcher 4 | . 4 4 3 Peak Build Rating 14 | 7 10 11 14 Average Rating 9 | 5 8 10 12 On Entrance 7 | . 7 10 11 Naked Turns . | . . . . Heaviest Build 34 | 14 32 32 34 Greatest Support 40 | 40 40 20 20 Greatest Overweight (x) 1 | 1 1 1 1 Average Overweight (x) . | . . 1 1 Largest Inventory Capacity 15 | 8 15 15 15 Average Capacity 14 | 7 13 15 15 Most Carried 15 | 3 15 15 15 Average Carried 11 | 1 10 14 14 Final Capacity 15 | 8 15 15 15 Final Carried 15 | 3 15 15 13 Class Distribution -------------------- 77% | Mutant 22% | Scavenger-Mutant Dominant Class ---------------- Mutant | -10/Materials Mutant | -10/Mines Scavenger-Mutant | -10/Subcaves Resources | -11 -10 -10 -10 ----------- Run | Yrd Mat Min Sub Matter Collected 1097 | 199 696 42 160 Remotely . | . . . . Salvage Created 1175 | 26 976 73 100 Parts 84 | 4 59 15 6 Haulers Intercepted 2 | . 2 . . Recyclers Shooed 4 | . 3 1 . Parts Field Recycled . | . . . . Retrieved Matter . | . . . . Parts Self-Destructed 7 | . . . 7 Prevented . | . . . . Kills | -11 -10 -10 -10 ------- Run | Yrd Mat Min Sub Combat Hostiles Destroyed 27 | . 14 11 2 Melee 1 | . . . 1 Guns 14 | . 12 2 . Cannons 1 | . 1 . . AOE 11 | . 1 9 1 Classes Destroyed 10 | 1 7 1 1 Worker 3 | . 3 . . Tunneler 6 | 2 3 1 . Hauler 2 | . 2 . . Recycler 3 | . 3 . . Operator 2 | . 2 . . Watcher 3 | . 3 . . Swarmer 12 | . 3 9 . Grunt 11 | . 11 . . Subdweller 2 | . . . 2 Assembled 2 | . . 2 . Best Kill Streak 4 | 1 4 3 1 Combat Bots Only 3 | . 3 3 1 Max Kills in Single Turn 3 | 1 1 3 1 Gunslinging . | . . . . Exploded 3 | . 1 3 1 Melee 1 | . . . 1 Uniques/NPCs Destroyed . | . . . . Combat | -11 -10 -10 -10 -------- Run | Yrd Mat Min Sub Hostile Shots Fired 113 | . 57 35 21 Missed 22 | . 10 7 5 Hits 91 | . 47 28 16 Projectile 91 | . 47 28 16 Critical Strikes 1 | . 1 . . Damage Taken 1187 | . 573 279 335 Core 254 | . 90 65 99 Absorbed by Shields . | . . . . Core Remaining (%) 100 | 100 . . . Volleys Fired 117 | 6 77 25 9 Largest 2 | 2 2 2 2 Hottest 130 | 40 130 130 90 Shots Fired 214 | 11 153 33 17 Gun 167 | 11 128 16 12 Cannon 20 | . 20 . . Launcher 18 | . 4 9 5 Special 9 | . 1 8 . Kinetic 75 | 11 55 . 9 Thermal 122 | . 94 24 4 Explosive 17 | . 4 9 4 Electromagnetic . | . . . . Robot Hit Streak 13 | 3 13 4 4 Robot Miss Streak 5 | 1 5 2 2 Penetration Max . | . . . . Secondary Targets 2 | . 2 . . Max Gunslinging Chain 1 | . 1 . . Shots Hit Robots 119 | 6 89 11 13 Core Hits 61 | 3 40 16 2 Critical Kills . | . . . . Critical Parts Destroyed 1 | . 1 . . Critical Strikes 7 | . 5 1 1 Burn 5 | . 4 1 . Destroy 2 | . 1 . 1 Melee Attacks 11 | . . . 11 Impact . | . . . . Slashing 11 | . . . 11 Piercing . | . . . . Sneak Attacks . | . . . . Combat Hostiles . | . . . . Follow-up Attacks . | . . . . Damage Inflicted 2578 | 66 1419 606 487 Guns 1461 | 66 1073 178 144 Cannons 223 | . 223 . . Explosions 767 | . 123 424 220 Melee 123 | . . . 123 Ramming 4 | . . 4 . Kinetic 777 | 66 569 . 142 Thermal 966 | . 727 178 61 Explosive 708 | . 123 424 161 Electromagnetic . | . . . . Impact . | . . . . Slashing 123 | . . . 123 Piercing . | . . . . Highest Corruption . | . . . . Average Corruption . | . . . . Corruption Purged . | . . . . Corruption Blocked . | . . . . Overload Shots . | . . . . Overflow Damage 53 | . 13 40 . Projectiles 3 | . 3 . . Explosions 50 | . 10 40 . Melee . | . . . . Knockbacks 2 | . 2 . . Impact . | . . . . Kinetic 2 | . 2 . . Secondary . | . . . . Self-Inflicted Damage 34 | . 12 12 10 Shots 4 | . 1 2 1 Rammed . | . . . . Targets Rammed 1 | . . 1 . Kicked 1 | . . 1 . Crushed . | . . . . Highest Temperature 393 | . 281 393 . Average Temperature 87 | . 62 187 . Received Heat Transfer 378 | . 294 . 84 Effects 3 | . 1 2 . Energy Bleed 3 | . 1 2 . Siege Activations . | . . . . Martial Activations . | . . . . Shielding Activations . | . . . . Robots Disrupted . | . . . . Combat Hostiles . | . . . . Robots Corrupted . | . . . . Combat Hostiles . | . . . . Parts Fried . | . . . . Impact Corruptions . | . . . . Robots Melted . | . . . . Combat Hostiles . | . . . . Parts Melted 2 | . 2 . . Heat Transferred 2591 | . 2035 481 75 Parts Sabotaged . | . . . . Parts Stolen . | . . . . Parts Stripped . | . . . . Power Chain Reactions . | . . . . Alert | -11 -10 -10 -10 ------- Run | Yrd Mat Min Sub Maximum Alert Level . | . . . . Low Security (%) 100 | 100 100 100 . Level 1 . | . . . . Level 2 . | . . . . Level 3 . | . . . . Level 4 . | . . . . Level 5 . | . . . . High Security . | . . . . Max Security . | . . . . Peak Influence 193 | 5 193 149 . Initial 71 | . . 71 . Average 46 | 1 49 44 . Influence Increases 941 | 10 652 264 15 Destroy 0b10 Robot/C 460 | . 280 180 . Destroy 0b10 Robot/NC 95 | 10 80 5 . Destroy Leader 110 | . 80 30 . Successful Hack 36 | . 36 . . Select Force Hacks 60 | . 60 . . Disable Machine 60 | . 60 . . Destroy Structure 75 | . 26 49 . Lose Combat Pursuer 45 | . 30 . 15 Influence Decreases 941 | 10 468 336 127 Entered New Map 172 | . . 113 59 Time Decay 746 | 10 445 223 68 Lost Part 23 | . 23 . . Squads Dispatched 5 | . 5 . . Investigation 3 | . 3 . . Extermination . | . . . . Reinforcement 2 | . 2 . . Assault . | . . . . Garrison . | . . . . Intercept . | . . . . Searches Triggered . | . . . . Construction Impeded . | . . . . Haulers Reinforced . | . . . . Active Scanning Responses . | . . . . Cargo Convoy Interrupts . | . . . . Stealth | -11 -10 -10 -10 --------- Run | Yrd Mat Min Sub Distress Signals 1 | . 1 . . Communications Jammed . | . . . . Distress Signals . | . . . . Times Spotted 46 | . 29 13 4 Peak Tracking Total 4 | . 3 3 4 Tactical Retreats 3 | . 1 . 2 Traps | -11 -10 -10 -10 ------- Run | Yrd Mat Min Sub Traps Triggered 1 | . 1 . . Indirectly . | . . . . Trap Hack Attempts . | . . . . Triggered . | . . . . Disarmed . | . . . . Reprogrammed . | . . . . Reused . | . . . . Traps Extracted . | . . . . Installed . | . . . . Triggered . | . . . . Machines | -11 -10 -10 -10 ---------- Run | Yrd Mat Min Sub Machines Disabled 4 | . 4 . . Max in Single Turn 2 | . 2 . . Machines Repaired . | . . . . Machines Dismantled . | . . . . Machines Sabotaged . | . . . . Overloaded Fab Kills . | . . . . Hacking | -11 -10 -10 -10 --------- Run | Yrd Mat Min Sub Machines Accessed 9 | . 8 1 . Terminals 6 | . 6 . . Fabricators . | . . . . Repair Stations . | . . . . Recycling Units 2 | . 2 . . Scanalyzers . | . . . . Garrison Access . | . . . . Total Hacks 26 | . 25 1 . Successful 18 | . 17 1 . Failed 8 | . 8 . . Catastrophic . | . . . . Database Lockouts . | . . . . Manual 24 | . 24 . . Terminals 23 | . 23 . . Fabricators . | . . . . Repair Stations . | . . . . Recycling Units 2 | . 2 . . Scanalyzers . | . . . . Garrison Access . | . . . . Terminal Hacks 6 | . 5 1 . Robot Analysis 2 | . 2 . . Prototype ID Bank 1 | . 1 . . Open Door 1 | . . 1 . Terminal Index 1 | . 1 . . Locate Traps 1 | . 1 . . Fabricator Hacks . | . . . . Repair Station Hacks . | . . . . Recycling Unit Hacks . | . . . . Scanalyzer . | . . . . Garrison Access Hacks . | . . . . Unauthorized Hacks 12 | . 12 . . Terminals 10 | . 10 . . Botnet 3 | . 3 . . Disrupt 1 | . 1 . . Operators 1 | . 1 . . Skim 5 | . 5 . . Fabricators . | . . . . Repair Stations . | . . . . Recycling Units 2 | . 2 . . Tunnel 2 | . 2 . . Scanalyzers . | . . . . Garrison Access . | . . . . Data Cores Recovered . | . . . . Used . | . . . . Hacking Detections 5 | . 5 . . Full Trace Events 1 | . 1 . . Feedback Events . | . . . . Feedback Blocked . | . . . . Robot Schematics Acquired . | . . . . Robots Built . | . . . . Authchips . | . . . . Time . | . . . . Total Robot Build Rating . | . . . . Part Schematics Acquired . | . . . . Parts Built . | . . . . Authchips . | . . . . Time . | . . . . Total Part Build Rating . | . . . . Parts Repaired . | . . . . Time . | . . . . Parts Recycled . | . . . . Recycled Matter . | . . . . Retrieved Matter . | . . . . Retrieved Components . | . . . . Parts Scanalyzed . | . . . . Part Schematics Acquired . | . . . . Parts Damaged . | . . . . Bothacking | -11 -10 -10 -10 ------------ Run | Yrd Mat Min Sub Used RIF Installer . | . . . . Robots Hacked . | . . . . Non-combat . | . . . . Combat . | . . . . Robot Hacks Applied . | . . . . Relay Couplers Released . | . . . . Fabnet Peak Effective % . | . . . . Robots Rewired . | . . . . Allies Hacked . | . . . . Hacks Repelled . | . . . . Allies | -11 -10 -10 -10 -------- Run | Yrd Mat Min Sub Total Allies . | . . . . Largest Group . | . . . . Highest-Rated Group . | . . . . Highest-Rated Ally . | . . . . Total Orders . | . . . . Ally Attacks . | . . . . Total Damage . | . . . . Kills . | . . . . Allies Corrupted . | . . . . Allies Melted . | . . . . Intel | -11 -10 -10 -10 ------- Run | Yrd Mat Min Sub Active Infowar (turns) 1283 | 44 606 129 504 Seismic 1283 | 44 606 129 504 Robot Analysis Total 2 | . 2 . . Derelict Logs Recovered 3 | . . 2 1 Drone Launches . | . . . . Drone Recoveries . | . . . . Exploration | -11 -10 -10 -10 ------------- Run | Yrd Mat Min Sub Turns Passed 4086 | 115 2558 909 504 Spaces Moved 1701 | 51 1009 430 211 Core 5 | 5 . . . Treads 442 | 46 396 . . Legs 1254 | . 613 430 211 Wheels . | . . . . Hover . | . . . . Flight . | . . . . Fastest Speed 50 | 50 160 190 190 Average Speed 182 | 152 178 190 190 Slowest Speed 240 | 160 240 190 190 Overloaded Moves . | . . . . Propulsion Burnouts . | . . . . Robots Hopped . | . . . . Potential Cave-ins . | . . . . Cave-ins Triggered . | . . . . Exploration Rate (%) 51 | 5 99 85 16 Regions Visited 3 Branch Regions 2 Pre-discovered Areas 2 | . 2 . . Known Exits Taken . | . . . . Unknown Exits Taken 3 | 1 1 1 . Scrap Searched 4 | . . 1 3 Spaces Dug 4 | . 1 . 3 Terrain Destroyed 130 | . 24 63 43 Melee 3 | . . . 3 Projectile 2 | . 1 1 . AOE 125 | . 23 62 40 Terrain Rammed . | . . . . Walls Destroyed . | . . . . Machines Disabled . | . . . . Actions | -11 -10 -10 -10 --------- Run | Yrd Mat Min Sub Total 2436 | 75 1606 473 282 Wait 512 | 8 472 5 27 Move 1698 | 50 1008 429 211 Hop . | . . . . Pick Up 32 | 3 19 4 6 Fast Attach 13 | 7 5 . 1 Attach 4 | . . 1 3 Detach . | . . . . Swap 27 | 1 15 4 7 Drop 21 | . 10 4 7 Fire 117 | 6 77 25 9 Melee 11 | . . . 11 Ram . | . . . . Kick 1 | . . 1 . Crush . | . . . . Escape Stasis . | . . . . Rewire . | . . . . Trap . | . . . . Miscellaneous . | . . . . Route ------- -11/Scrapyard -10/Materials (discovered 4 exits: [*Mat x3] / *Min) -10/Mines (discovered 2 exits: [*Mat] / [*Sub]) -10/Subcaves History --------- Turn | Location | Event 12 | -11/Scrapyard | Discovered new exit (range 15) 116 | -11/Scrapyard | Entered Materials 317 | -10/Materials | Build established: Mutant 517 | -10/Materials | Discovered new exit (range 6) 1395 | -10/Materials | Discovered new exit (range 5) 1507 | -10/Materials | Build established: Scavenger-Mutant 1769 | -10/Materials | Discovered new exit (range 7) 2002 | -10/Materials | Discovered new exit (range 6) 2112 | -10/Materials | Build established: Mutant 2674 | -10/Materials | Entered Mines 2692 | -10/Mines | Met a Derelict bent on vengeance 2693 | -10/Mines | Discovered new exit (range 5) 2729 | -10/Mines | Learned Materials garrison access intel 2902 | -10/Mines | Found the Drone Emporium 2909 | -10/Mines | Found Prototype Device 3141 | -10/Mines | Excavation squad dispatched 3141 | -10/Mines | A large section of the Mines collapsed 3383 | -10/Mines | Core integrity fell below 50% 3560 | -10/Mines | A weapon hastily lodged in a ceiling crevice suddenly fell to the ground 3572 | -10/Mines | Discovered new exit (range 6) 3583 | -10/Mines | Entered Subcaves 3584 | -10/Subcaves | Approached by a straggling Scientist 3659 | -10/Subcaves | Learned Materials stockpile data 3905 | -10/Subcaves | Ambushed by Subdwellers from Twisted Machinery 3906 | -10/Subcaves | Shifting Twisted Machinery released Sub. Shrapnel Launcher 4052 | -10/Subcaves | Build established: Scavenger-Mutant 4082 | -10/Subcaves | Core integrity fell below 20% 4083 | -10/Subcaves | Ambushed by Subdweller buried in earth 4087 | -10/Subcaves | Ambushed by Subdweller buried in earth 4087 | -10/Subcaves | Destroyed by TS-8HT(R) with Subdweller Machine Gun Last Messages --------------- 03876_ Subatomizers dissect the Multitool. 03876_ Acquired Multitool. TI-7TK(c): "I think it's somewhere northeast of here" Sub. Shrapnel Launcher falls loose from the Twisted Machinery. TI-7TK(c): "I think it's somewhere northeast of here" 03992_ Dropped Grenade Launcher. 03992_ Acquired Sub. Shrapnel Launcher. 03995_ Acquired 11 matter. 04007_ Dropped Ion Engine. 04007_ Acquired Sub. Power Source. 04012_ Dropped Particle Gun. 04013_ Acquired Sub. Laser. 04016_ Acquired Particle Gun. TI-7TK(c): "We're getting close, I can feel it." 04056_ Aluminum Leg destroyed. 04065_ Sub. Laser destroyed. 04078_ The unstable cave ceiling collapses. 04080_ LU-AGO(R) suffers critical hit (Destroy). 04084_ YI-YLL(R): "ARGHSUB!" 04087_ YI-YLL(R) destroyed. Map ----- +----------------------------------------------------+ | ?????? #????????????????????? | | ???????? ??????????????????????? | | ??????????# #???????????????????????? | | ???????????# #????????????????????????? | | ??????????????# #??# #???????????????????? | | ???????????????# ###""#???????????????????? | | ???????????????## ] """"#####???????????????? | | ???????#####??### "" "% """"" ##??????????????? | | ##?????# #### """!%"""""""""""#??????????????? | | ##???##" "" !% """""""#??????????????? | | ##??#" " " & """"" ????????????? | | #### " ## ##"" " *" "" #???????????? | | ## ######## #### " " ##" #???????????? | | "##?????#"##??#### #??? ##???????????? | | "#??????##???""## " #????? #????????????? | | ##???????????"""" " "#???????????????????? | | ###????????????## ## "##???????????????????? | | # #???????????????##?# "##???????????????????? | | ## #?????????????????## ""##??????????????????? | | ?### #????????????????## """"#??????????????????? | | ???## #????????????????#c"""""#??????????????????? | | ##### ###??????????????# """##??????????????????? | | =[""##???????##????# ""#???????????????????? | | #???????# ### ##"#???????????????????? | | # # "#?????## ####???????????????????? | | #### #????# """@ #?????????????????????? | | #????# """ "??????????????????? | | ??????## ""[#???????????????? | | #???????? # """ #??????????????? | | #????????? ## " ???????????????? | | #???????# #?##### ??????????????? | | #????????? ???????; ??????????????? | | #????????? ?? ### ???????? * ;?????????????? | | ??????????????????# ??????????? %& ????????????? | | ??????????????????##??????????? #???????????? | | ???????????????????????????????? ;R ????????????? | | ?????????????????????????????????; #????????????? | | ??????????????????????????????????#??????????????? | | ?????????????????????????????????????????????????? | | ?????????????????????????????????????????????????? | | ?????????????????????????????????????????????????? | | ?????????????????????????????????????????????????? | | ?????????????????????????????????????????????????? | | ?????????????????????????????????????????????????? | | ?????????????????????????????????????????????????? | | ?????????????????????????????????????????????????? | | ?????????????????????????????????????????????????? | | ?????????????????????????????????????????????????? | | ?????????????????????????????????????????????????? | | ?????????????????????????????????????????????????? | +----------------------------------------------------+ Best States ------------- Heat Dissipation 35 Energy Generation 10 Energy Capacity 250 Matter Stores 300 Matter Capacity 300 Sight Range 16 Terrain Scan Density 10 Evasion (%) 40 Recoil Reduction 2 Item Schematics ----------------- None Robot Schematics ------------------ None Fabricated ------------ Nothing Repaired ---------- Nothing Alien Tech Used ----------------- None Achievements -------------- None Challenges ------------ None Game ------ Seed HeatConstructTerminator Manual? 0 Play Time 00:21:02 Cumulative 288.1 hours Start 2025.06.08 @ 12:17:42 End 2025.06.08 @ 12:35:47 Sessions 1 Manual Loads 0 Difficulty Rogue Special Mode None Game No. 147 Rogue 147 Adventurer 0 Explorer 0 Win Type - Total 1 Types 0/0/0/0/1/0/0/0/0/0 Lore% 73 Gallery% 75 Achievement% 64 Wizard Run 0 Options --------- Layout 0 ASCII 0 Keyboard 0 Movement Mouse Keybinds 0 Fullscreen 1 Font 24/Smallcaps Map View 183x50 Zoom Use 0% Tactical HUD 1 Map Filters NONE Filters NONE Steam 0 RUN: 6c2866f9-61c3-4f89-b242-857c7d633314